bitfinex-derivatives/quotes_BTCF0:USTF0_20260315
["timestamp","ask_amount","ask_price","bid_price","bid_amount"]
[1773571685238,0.041753,71839.0,71833.0,0.0014]
[1773571686943,0.18965183,71838.0,71833.0,0.0014]
[1773571687142,0.041753,71839.0,71833.0,0.0014]
[1773571687747,0.041751,71844.0,71833.0,0.01651913]
[1773571688055,0.23132754,71843.0,71833.0,0.01651913]
[1773571688348,0.041751,71843.0,71833.0,0.01651913]
[1773571688849,0.041752,71842.0,71833.0,0.01651913]
[1773571689350,0.00900581,71852.0,71833.0,0.01651913]
[1773571689653,0.041752,71842.0,71833.0,0.01651913]
[1773571691755,0.041752,71842.0,71833.0,0.0014]
[1773571692655,0.041751,71844.0,71833.0,0.0014]
[1773571692956,0.00900581,71852.0,71833.0,0.0014]
[1773571693257,0.1893807,71851.0,71833.0,0.0014]
[1773571693447,0.1893807,71850.0,71833.0,0.0014]
[1773571693649,0.1893807,71849.0,71833.0,0.0014]
[1773571693851,0.1893807,71848.0,71833.0,0.0014]
[1773571694052,0.041751,71843.0,71833.0,0.0014]
[1773571695259,0.0079592,71847.0,71833.0,0.0014]
[1773571697054,0.041753,71841.0,71833.0,0.0014]
[1773571697260,0.041751,71843.0,71833.0,0.0014]
[1773571698865,0.041752,71842.0,71833.0,0.0014]
[1773571700661,0.041752,71842.0,71834.0,0.119]
[1773571702963,0.041752,71841.0,71834.0,0.11859819]
[1773571703167,0.041753,71840.0,71834.0,0.11811117]
[1773571703560,0.041753,71840.0,71835.0,0.11811117]
[1773571706556,0.041753,71840.0,71833.0,0.0014]
[1773571706760,0.18953439,71839.0,71813.0,0.01493639]
[1773571706960,0.18953439,71838.0,71820.0,0.041764]
[1773571707173,0.18953439,71837.0,71820.0,0.041764]
[1773571707482,0.41728807,71868.0,71832.0,0.01581707]
[1773571707684,0.41728807,71868.0,71833.0,0.01721707]
[1773571708084,0.00961866,71866.0,71833.0,0.01721707]
[1773571708282,0.041747,71850.0,71835.0,0.01585056]
[1773571708585,0.041746,71853.0,71835.0,0.01585056]
[1773571708787,0.041746,71852.0,71838.0,0.041754]
[1773571709585,0.041747,71851.0,71838.0,0.041754]
[1773571710288,0.041749,71847.0,71835.0,0.01585056]
[1773571716389,0.01097,71852.0,71835.0,0.01585056]
[1773571716591,0.01097,71852.0,71834.0,0.041756]
[1773571718190,0.041749,71847.0,71834.0,0.041756]
[1773571719496,0.01097,71852.0,71835.0,0.0014]
[1773571719791,0.041751,71844.0,71835.0,0.0014]
[1773571720587,0.041749,71846.0,71835.0,0.0014]
[1773571720786,0.041749,71846.0,71835.0,0.01731741]
[1773571721693,0.04175,71845.0,71835.0,0.01731741]
[1773571728801,0.01097,71852.0,71835.0,0.01731741]
[1773571729006,0.041751,71843.0,71835.0,0.0014]
[1773571729300,0.041753,71839.0,71836.0,0.00099597]
[1773571729496,0.041753,71839.0,71829.0,0.01098]
[1773571729698,0.041753,71839.0,71830.0,0.0014]
[1773571735611,0.041754,71838.0,71830.0,0.0014]
[1773571736104,0.041754,71838.0,71825.0,0.041761]
[1773571736311,0.041754,71838.0,71826.0,0.0014]
[1773571736604,0.041755,71837.0,71830.0,0.001]
[1773571737006,0.041755,71837.0,71831.0,0.0014]
[1773571737406,0.041755,71837.0,71832.0,0.0014]
[1773571737603,0.00415911,71843.0,71822.0,0.01631571]
[1773571737805,0.041756,71834.0,71823.0,0.0014]
[1773571738013,0.041757,71833.0,71823.0,0.0014]
[1773571738499,0.041758,71832.0,71823.0,0.0014]
[1773571738699,0.02196,71845.0,71823.0,0.0014]
[1773571738700,0.03522363,71831.0,71823.0,0.0014]
[1773571739301,0.041756,71835.0,71823.0,0.0014]
[1773571739506,0.041756,71835.0,71824.0,0.01643839]
[1773571740398,0.041757,71834.0,71824.0,0.01643839]
[1773571741216,0.00315295,71844.0,71824.0,0.01643839]
[1773571741217,0.041757,71833.0,71824.0,0.01643839]
[1773571743509,0.041758,71832.0,71824.0,0.01643839]
[1773571744210,0.00315295,71844.0,71824.0,0.05820039]
[1773571744409,0.00315295,71844.0,71825.0,0.01646655]
[1773571745211,0.02196,71845.0,71825.0,0.01646655]
[1773571746003,0.041755,71836.0,71825.0,0.01646655]
[1773571746404,0.041755,71837.0,71825.0,0.01646655]
[1773571748103,0.041755,71837.0,71825.0,0.05822755]
[1773571748305,0.041755,71836.0,71825.0,0.01646655]
[1773571748914,0.041756,71835.0,71825.0,0.01646655]
[1773571751109,0.00062971,71844.0,71823.0,0.0014]
[1773571752616,0.00062971,71844.0,71824.0,0.01660321]
[1773571754111,0.041754,71837.0,71824.0,0.01660321]
[1773571754819,0.041755,71836.0,71824.0,0.01660321]
[1773571755319,0.02196,71845.0,71824.0,0.01660321]
[1773571755510,0.02196,71845.0,71823.0,0.0014]
[1773571755905,0.00016682,71835.0,71819.0,0.01098]
[1773571756112,0.041761,71826.0,71819.0,0.01238]
[1773571756414,0.041761,71826.0,71820.0,0.0014]
[1773571756606,0.041761,71826.0,71819.0,0.01098]
[1773571756817,0.0014,71840.0,71820.0,0.0014]
[1773571757015,0.041763,71822.0,71821.0,0.0014]
[1773571757221,0.041764,71821.0,71810.0,0.01654195]
[1773571757414,0.041764,71821.0,71811.0,0.0014]
[1773571757813,0.00015937,71820.0,71811.0,0.0014]
[1773571758509,0.00015937,71820.0,71810.0,0.001]
[1773571758714,0.041766,71818.0,71811.0,0.0014]
[1773571759314,0.04192437,71820.0,71811.0,0.0014]
[1773571759922,0.02196,71840.0,71821.0,0.01654453]
[1773571760123,0.041757,71833.0,71822.0,0.01794453]
[1773571760417,0.041757,71833.0,71823.0,0.01794453]
[1773571762011,0.041754,71839.0,71826.0,0.041761]
[1773571762321,0.278166,71889.0,71830.0,0.01665946]
[1773571762322,0.0014,71850.0,71830.0,0.01665946]
[1773571762517,0.041753,71841.0,71831.0,0.0014]
[1773571764114,0.02196,71840.0,71831.0,0.0014]
[1773571764316,0.00015076,71863.0,71832.0,0.01665639]
[1773571764516,0.00015076,71863.0,71826.0,0.02096376]
[1773571764517,0.00150216,71861.0,71838.0,0.01665639]
[1773571764721,0.041743,71857.0,71841.0,0.041752]
[1773571764911,0.041743,71857.0,71842.0,0.0014]
[1773571765219,0.042744,71856.0,71842.0,0.0014]
[1773571765418,0.001,71856.0,71843.0,0.04175]
[1773571765821,0.001,71856.0,71844.0,0.01666868]
[1773571768516,0.041744,71855.0,71842.0,0.0014]
[1773571769116,0.001,71856.0,71843.0,0.041751]
[1773571769616,0.001,71856.0,71844.0,0.0014]
[1773571772023,0.001,71856.0,71843.0,0.041751]
[1773571772224,0.001,71856.0,71845.0,0.0014]
[1773571772523,0.041744,71855.0,71840.0,0.01669829]
[1773571772729,0.041744,71855.0,71846.0,0.0014]
[1773571773023,0.041745,71854.0,71847.0,0.0014]
[1773571773209,0.041745,71854.0,71848.0,0.0014]
[1773571773417,0.041745,71854.0,71835.0,0.01673245]
[1773571773616,0.041745,71854.0,71834.0,0.01098]
[1773571773617,0.001,71853.0,71836.0,0.01813245]
[1773571773815,0.001,71853.0,71840.0,0.041752]
[1773571774227,0.001,71853.0,71841.0,0.0014]
[1773571774725,0.042746,71853.0,71841.0,0.0014]
[1773571775423,0.042746,71853.0,71842.0,0.0014]
[1773571775923,0.042746,71853.0,71843.0,0.0014]
[1773571776324,0.042746,71853.0,71840.0,0.01672738]
[1773571776621,0.042746,71853.0,71841.0,0.0014]
[1773571776827,0.042746,71853.0,71840.0,0.01672738]
[1773571777126,0.041746,71852.0,71841.0,0.0014]
[1773571777324,0.041746,71852.0,71840.0,0.01672738]
[1773571777525,0.041746,71852.0,71841.0,0.0014]
[1773571778023,0.041747,71851.0,71837.0,0.041754]
[1773571778221,0.00204502,71852.0,71838.0,0.0014]
[1773571778426,0.00204502,71851.0,71839.0,0.0014]
[1773571779724,0.041748,71848.0,71839.0,0.0014]
[1773571782522,0.042749,71847.0,71835.0,0.041755]
[1773571782723,0.04175,71846.0,71836.0,0.0014]
[1773571783527,0.04175,71846.0,71833.0,0.041757]
[1773571783528,0.001,71845.0,71831.0,0.041758]
[1773571783732,0.00131882,71849.0,71832.0,0.0014]
[1773571784031,0.041751,71843.0,71833.0,0.0014]
[1773571784233,0.041753,71840.0,71834.0,0.0014]
[1773571784531,0.001,71842.0,71835.0,0.0014]
[1773571784734,0.01097,71847.0,71829.0,0.041759]
[1773571784928,0.00218109,71846.0,71830.0,0.0014]
[1773571785123,0.041752,71841.0,71830.0,0.0014]
[1773571786726,0.00118109,71846.0,71830.0,0.0014]
[1773571786930,0.041753,71840.0,71830.0,0.0014]
[1773571787930,0.00118109,71846.0,71830.0,0.0014]
[1773571787931,0.041754,71839.0,71830.0,0.0014]
[1773571789532,0.041754,71839.0,71827.0,0.04176]
[1773571789733,0.041754,71839.0,71828.0,0.0014]
[1773571790525,0.041755,71837.0,71829.0,0.0014]
[1773571790724,0.041755,71837.0,71825.0,0.041761]
[1773571790927,0.041755,71837.0,71830.0,0.0014]
[1773571791326,0.041755,71837.0,71831.0,0.0014]
[1773571791526,0.001,71836.0,71831.0,0.0014]
[1773571791727,0.001,71836.0,71825.0,0.041761]
[1773571792237,0.001,71836.0,71826.0,0.0014]
[1773571792539,0.001,71836.0,71825.0,0.041761]
[1773571792735,0.001,71836.0,71826.0,0.0014]
[1773571793034,0.001,71836.0,71825.0,0.041761]
[1773571793340,0.001,71836.0,71826.0,0.0014]
[1773571793536,0.001,71836.0,71821.0,0.01685461]
[1773571793742,0.041757,71834.0,71822.0,0.043163]
[1773571794040,0.041757,71834.0,71823.0,0.041762]
[1773571794235,0.041757,71834.0,71824.0,0.0014]
[1773571795437,0.042755,71836.0,71824.0,0.0014]
[1773571795639,0.041756,71835.0,71824.0,0.00070363]
[1773571798340,0.041756,71835.0,71825.0,0.01685032]
[1773571798643,0.001,71836.0,71825.0,0.01685032]
[1773571799340,0.41728807,71864.0,71824.0,0.00070363]
[1773571799641,0.041749,71846.0,71834.0,0.01684966]
[1773571799837,0.041749,71846.0,71836.0,0.01684966]
[1773571801226,0.052709,71846.0,71836.0,0.01684966]
[1773571801439,0.00015075,71866.0,71836.0,0.0168234]
[1773571801633,0.0014,71865.0,71836.0,0.0168234]
[1773571801937,0.00015075,71866.0,71842.0,0.01681974]
[1773571802134,0.0014,71865.0,71844.0,0.01681974]
[1773571802335,0.041745,71854.0,71846.0,0.01681974]
[1773571802533,0.041745,71854.0,71848.0,0.01681974]
[1773571802743,0.041744,71856.0,71848.0,0.01681974]
[1773571803129,0.001,71866.0,71848.0,0.01681974]
[1773571803333,0.041744,71855.0,71848.0,0.01681974]
[1773571804040,0.041744,71855.0,71850.0,0.02767652]
[1773571804743,0.01097,71853.0,71850.0,0.02767652]
[1773571805637,0.00397999,71853.0,71851.0,0.0166978]
[1773571805834,0.041743,71858.0,71851.0,0.0166978]
[1773571806032,0.041743,71857.0,71851.0,0.0166978]
[1773571806342,0.041743,71857.0,71847.0,0.01809452]
[1773571808147,0.041743,71857.0,71847.0,0.02906452]
[1773571813047,0.041743,71857.0,71848.0,0.01665677]
[1773571822947,0.041742,71859.0,71848.0,0.01665677]
[1773571825348,0.01097,71867.0,71847.0,0.01237]
[1773571825554,0.01097,71867.0,71856.0,0.01681014]
[1773571825749,0.041738,71866.0,71858.0,0.01681014]
[1773571826057,0.01097,71867.0,71859.0,0.0014]
[1773571826258,0.01097,71867.0,71847.0,0.01097]
[1773571826452,0.041741,71860.0,71848.0,0.01679979]
[1773571827445,0.041741,71860.0,71848.0,0.05854779]
[1773571828058,0.04174,71862.0,71848.0,0.05854779]
[1773571831761,0.04174,71862.0,71848.0,0.041748]
[1773571831962,0.04174,71862.0,71849.0,0.01662935]
[1773571832264,0.04174,71862.0,71849.0,0.05837635]
[1773571835567,0.04174,71862.0,71850.0,0.041747]
[1773571835767,0.04174,71862.0,71852.0,0.01673871]
[1773571835967,0.041739,71864.0,71853.0,0.01673871]
[1773571836870,0.041739,71865.0,71854.0,0.01674285]
[1773571845973,0.01097,71875.0,71855.0,0.05845984]
[1773571846172,0.01097,71875.0,71856.0,0.01670934]
[1773571846972,0.041738,71866.0,71856.0,0.01670934]
[1773571849974,0.01097,71875.0,71856.0,0.01670934]
[1773571850669,0.041734,71873.0,71852.0,0.041745]
[1773571850868,0.01097,71875.0,71853.0,0.0014]
[1773571851476,0.01197,71875.0,71853.0,0.0014]
[1773571851977,0.041739,71865.0,71853.0,0.0014]
[1773571856277,0.041739,71864.0,71853.0,0.0014]
[1773571859077,0.041739,71864.0,71852.0,0.041745]
[1773571859283,0.041739,71864.0,71853.0,0.0014]
[1773571860981,0.04174,71863.0,71853.0,0.0014]
[1773571867993,0.04174,71862.0,71853.0,0.0014]
[1773571868189,0.01097,71875.0,71849.0,0.01097]
[1773571868380,0.041734,71873.0,71849.0,0.01097]
[1773571868582,0.041745,71854.0,71850.0,0.0014]
[1773571869404,0.041745,71854.0,71851.0,0.0014]
[1773571869591,0.041744,71856.0,71849.0,0.01097]
[1773571869796,0.041744,71856.0,71852.0,0.0014]
[1773571870197,0.041744,71856.0,71849.0,0.01097]
[1773571870402,0.041744,71856.0,71850.0,0.0014]
[1773571870600,0.041744,71856.0,71843.0,0.041751]
[1773571870902,0.041744,71856.0,71844.0,0.0014]
[1773571871100,0.041744,71856.0,71843.0,0.041751]
[1773571871406,0.041744,71856.0,71845.0,0.0014]
[1773571871800,0.041746,71852.0,71840.0,0.01691047]
[1773571872004,0.041746,71852.0,71849.0,0.01097]
[1773571872191,0.041746,71852.0,71850.0,0.0014]
[1773571872397,0.041746,71852.0,71851.0,0.0014]
[1773571873206,0.041746,71852.0,71841.0,0.01691614]
[1773571873501,0.0014,71872.0,71842.0,0.0014]
[1773571873695,0.0014,71872.0,71837.0,0.01691551]
[1773571873902,0.041747,71851.0,71838.0,0.0014]
[1773571874108,0.041747,71851.0,71838.0,0.01832987]
[1773571874307,0.041747,71851.0,71839.0,0.0014]
[1773571874699,0.0014,71872.0,71840.0,0.0014]
[1773571874700,0.041747,71850.0,71840.0,0.0014]
[1773571874900,0.041747,71850.0,71841.0,0.0014]
[1773571875107,0.01097,71856.0,71841.0,0.0014]
[1773571875606,0.041748,71848.0,71834.0,0.01693623]
[1773571875906,0.041747,71850.0,71837.0,0.041754]
[1773571876112,0.041747,71850.0,71838.0,0.041754]
[1773571876410,0.041747,71850.0,71838.0,0.05868972]
[1773571877611,0.041747,71850.0,71839.0,0.01694193]
[1773571878009,0.041746,71852.0,71839.0,0.01694193]
[1773571878405,0.041746,71852.0,71843.0,0.01097]
[1773571878708,0.041747,71851.0,71844.0,0.0014]
[1773571878910,0.041747,71850.0,71844.0,0.0014]
[1773571879105,0.01097,71845.0,71844.0,0.0014]
[1773571879804,0.01097,71845.0,71843.0,0.01097]
[1773571880202,0.01097,71845.0,71834.0,0.0586962]
[1773571880409,0.041749,71846.0,71835.0,0.0183393]
[1773571880705,0.041749,71846.0,71836.0,0.0183393]
[1773571881012,0.041749,71847.0,71837.0,0.0014]
[1773571881311,0.04174,71862.0,71832.0,0.041757]
[1773571881512,0.04174,71862.0,71838.0,0.0014]
[1773571881698,0.041751,71844.0,71838.0,0.0014]
[1773571883912,0.041749,71846.0,71838.0,0.0014]
[1773571884610,0.04175,71845.0,71838.0,0.0014]
[1773571888615,0.041751,71844.0,71838.0,0.0014]
[1773571890010,0.01097,71847.0,71839.0,0.0014]
[1773571890211,0.01097,71847.0,71840.0,0.0014]
[1773571890413,0.01097,71847.0,71841.0,0.0014]
[1773571890609,0.041752,71842.0,71833.0,0.03730769]
[1773571890809,0.041752,71842.0,71834.0,0.0014]
[1773571891507,0.01097,71847.0,71834.0,0.0014]
[1773571891698,0.041752,71842.0,71834.0,0.0014]
[1773571892109,0.01097,71847.0,71834.0,0.0014]
[1773571893812,0.041751,71844.0,71834.0,0.0014]
[1773571895803,0.041751,71844.0,71834.0,0.0180088]
[1773571896113,0.01097,71847.0,71834.0,0.0180088]
[1773571897110,0.041751,71844.0,71834.0,0.0180088]
[1773571898313,0.01097,71847.0,71834.0,0.0180088]
[1773571898314,0.04175,71846.0,71836.0,0.01657644]
[1773571900717,0.04175,71845.0,71836.0,0.01657644]
[1773571902813,0.04175,71845.0,71834.0,0.043156]
[1773571903017,0.01097,71847.0,71833.0,0.03730769]
[1773571903217,0.041753,71840.0,71834.0,0.0014]
[1773571903406,0.041753,71840.0,71835.0,0.0014]
[1773571904016,0.041753,71840.0,71836.0,0.0014]
[1773571904201,0.041753,71840.0,71837.0,0.0014]
[1773571904520,0.041754,71839.0,71838.0,0.0014]
[1773571905110,0.041752,71841.0,71838.0,0.0014]
[1773571905311,0.041752,71841.0,71839.0,0.0014]
[1773571905516,0.041752,71841.0,71840.0,0.0014]
[1773571906510,0.041752,71841.0,71828.0,0.0583193]
[1773571906715,0.041752,71841.0,71829.0,0.0014]
[1773571908817,0.041753,71840.0,71829.0,0.0014]
[1773571909416,0.041753,71840.0,71828.0,0.0583193]
[1773571909612,0.041753,71840.0,71829.0,0.0014]
[1773571913016,0.041753,71840.0,71829.0,0.05973902]
[1773571916121,0.01097,71847.0,71829.0,0.01798002]
[1773571916323,0.01097,71847.0,71829.0,0.0014]
[1773571916617,0.041754,71838.0,71827.0,0.04176]
[1773571916922,0.041754,71838.0,71828.0,0.0014]
[1773571918223,0.041754,71838.0,71828.0,0.0024]
[1773571918612,0.01097,71847.0,71829.0,0.0014]
[1773571919014,0.041753,71840.0,71829.0,0.0014]
[1773571919306,0.01097,71847.0,71829.0,0.0014]
[1773571919818,0.041753,71840.0,71829.0,0.043159]
[1773571920024,0.041755,71836.0,71830.0,0.0014]
[1773571921922,0.01097,71847.0,71830.0,0.01798526]
[1773571922218,0.04175,71846.0,71836.0,0.01659263]
[1773571922414,0.04175,71845.0,71837.0,0.0014]
[1773571923427,0.0014,71855.0,71837.0,0.0014]
[1773571923428,0.041751,71844.0,71837.0,0.0014]
[1773571927126,0.01097,71847.0,71837.0,0.0014]
[1773571927430,0.04175,71845.0,71837.0,0.0014]
[1773571937133,0.01097,71847.0,71838.0,0.01614798]
[1773571937340,0.0014,71864.0,71842.0,0.01614798]
[1773571937529,0.41728807,71868.0,71842.0,0.01614798]
[1773571937836,0.041741,71860.0,71848.0,0.01614798]
[1773571938026,0.041741,71860.0,71849.0,0.0175482]
[1773571938223,0.041742,71859.0,71849.0,0.0175482]
[1773571938632,0.041731,71878.0,71849.0,0.0175482]
[1773571938633,0.041741,71861.0,71849.0,0.0175482]
[1773571938828,0.0150052,71880.0,71849.0,0.0161482]
[1773571939027,0.0150052,71880.0,71837.0,0.041754]
[1773571939028,0.041737,71867.0,71853.0,0.041745]
[1773571939228,0.041737,71867.0,71854.0,0.0014]
[1773571939428,0.041736,71869.0,71855.0,0.041744]
[1773571939629,0.001,71859.0,71856.0,0.0014]
[1773571939931,0.041736,71869.0,71856.0,0.0014]
[1773571940437,0.041741,71861.0,71857.0,0.0014]
[1773571940736,0.041742,71859.0,71858.0,1.9e-05]
[1773571940940,0.041742,71859.0,71848.0,0.0160781]
[1773571941236,0.041742,71859.0,71849.0,0.0014]
[1773571941640,0.041742,71859.0,71845.0,0.04175]
[1773571941935,0.041742,71859.0,71850.0,0.0014]
[1773571942730,0.01097,71860.0,71850.0,0.01793228]
[1773571942937,0.052711,71860.0,71850.0,0.01793228]
[1773571943136,0.01097,71860.0,71850.0,0.01793228]
[1773571943333,0.01097,71860.0,71852.0,0.01653228]
[1773571944230,0.04174,71863.0,71852.0,0.01653228]
[1773571945636,0.01097,71862.0,71852.0,0.01653228]
[1773571947743,0.04174,71863.0,71852.0,0.01653228]
[1773571949143,0.01097,71862.0,71852.0,0.01653228]
[1773571952245,0.01097,71862.0,71852.0,0.05827828]
[1773571953946,0.01097,71862.0,71850.0,0.0014]
[1773571954143,0.05271,71862.0,71850.0,0.0014]
[1773571954738,0.05271,71862.0,71850.0,0.043147]
[1773571954946,0.05271,71862.0,71851.0,0.0014]
[1773571955546,0.05271,71862.0,71851.0,0.00070368]
[1773571955846,0.05271,71862.0,71852.0,0.0014]
[1773571956845,0.01097,71862.0,71852.0,0.0014]
[1773571958044,0.01097,71862.0,71852.0,0.043145]
[1773571959354,0.01097,71862.0,71852.0,0.041745]
[1773571959543,0.01097,71862.0,71853.0,0.0014]
[1773571961447,0.01097,71862.0,71842.0,0.01098]
[1773571961448,0.00199004,71861.0,71842.0,0.01098]
[1773571961750,0.00199004,71860.0,71846.0,0.0014]
[1773571961952,0.00191642,71873.0,71846.0,0.0014]
[1773571963050,0.041744,71856.0,71846.0,0.0014]
[1773571965650,0.041742,71860.0,71846.0,0.0014]
[1773571965852,0.041742,71858.0,71846.0,0.0014]
[1773571966147,0.01097,71862.0,71846.0,0.0014]
[1773571966344,0.041745,71853.0,71846.0,0.0014]
[1773571966544,0.041746,71851.0,71837.0,0.01653228]
[1773571966852,0.041746,71851.0,71838.0,0.0014]
[1773571967352,0.041746,71851.0,71837.0,0.05828628]
[1773571967754,0.041746,71851.0,71838.0,0.01793228]
[1773571968255,0.041747,71850.0,71839.0,0.0014]
[1773571968957,0.041747,71850.0,71840.0,0.0014]
[1773571969258,0.00128288,71858.0,71836.0,0.01098]
[1773571969556,0.01586039,71861.0,71837.0,0.0014]
[1773571969758,0.01097,71862.0,71842.0,0.01653228]
[1773571969947,0.041745,71854.0,71843.0,0.01653228]
[1773571970148,0.041745,71854.0,71845.0,0.01653228]
[1773571972558,0.03533074,71853.0,71845.0,0.01653228]
[1773571974252,0.03533074,71853.0,71844.0,0.0014]
[1773571974462,0.041746,71852.0,71845.0,0.0014]
[1773571975349,0.041746,71852.0,71846.0,0.0014]
[1773571976659,0.041746,71852.0,71841.0,0.01499071]
[1773571976859,0.041746,71852.0,71847.0,0.0014]
[1773571981462,0.0155522,71858.0,71836.0,0.01098]
[1773571981666,0.0155522,71858.0,71837.0,0.0014]
[1773571982363,0.01097,71862.0,71840.0,0.01499071]
[1773571982557,0.041745,71853.0,71841.0,0.01499071]
[1773571983761,0.041746,71852.0,71841.0,0.01499071]
[1773571989566,0.041741,71860.0,71849.0,0.01499071]
[1773571989766,0.041742,71859.0,71850.0,0.0014]
[1773571991268,0.041741,71861.0,71850.0,0.01639071]
[1773571991469,0.01097,71862.0,71850.0,0.05813771]
[1773571992171,0.01544542,71872.0,71850.0,0.01639071]
[1773571992371,0.041737,71867.0,71850.0,0.0014]
[1773571992668,0.041738,71866.0,71854.0,0.05673471]
[1773571992857,0.041738,71866.0,71855.0,0.01499071]
[1773571993057,0.04174,71863.0,71855.0,0.01499071]
[1773571993263,0.04174,71863.0,71841.0,0.12622327]
[1773571993264,0.0155522,71865.0,71845.0,0.01499071]
[1773571993463,0.0155522,71872.0,71846.0,0.0014]
[1773571993768,0.041745,71854.0,71847.0,0.0014]
[1773571993967,0.0155522,71862.0,71847.0,0.0014]
[1773571994169,0.041743,71857.0,71845.0,0.04175]
[1773571994362,0.041743,71857.0,71846.0,0.0014]
[1773571996667,0.01097,71860.0,71845.0,0.01499071]
[1773571996973,0.041743,71857.0,71846.0,0.0014]
[1773571997171,0.041744,71856.0,71846.0,0.0014]
[1773572005379,0.041744,71855.0,71846.0,0.0014]
[1773572006077,0.01432277,71860.0,71847.0,0.0014]
[1773572006280,0.01432277,71860.0,71848.0,0.0014]
[1773572006480,0.01432277,71860.0,71841.0,0.041752]
[1773572006676,0.01432277,71860.0,71842.0,0.0014]
[1773572007072,0.041745,71854.0,71842.0,0.0014]
[1773572007271,0.041745,71853.0,71842.0,0.0014]
[1773572011278,0.01097,71862.0,71845.0,0.01441056]
[1773572011488,0.041742,71858.0,71846.0,0.01441056]
[1773572011985,0.041742,71858.0,71847.0,0.041749]
[1773572012486,0.083488,71857.0,71845.0,0.041749]
[1773572012674,0.041743,71857.0,71845.0,0.041749]
[1773572014980,0.041743,71857.0,71846.0,0.041749]
[1773572015178,0.041745,71856.0,71846.0,0.041749]
[1773572015686,0.01097,71862.0,71850.0,0.05615656]
[1773572015881,0.01097,71862.0,71851.0,0.0014]
[1773572017888,0.01097,71862.0,71852.0,0.01441056]
[1773572018087,0.04174,71863.0,71852.0,0.01441056]
[1773572019389,0.01097,71862.0,71852.0,0.01441056]
[1773572020376,0.01097,71862.0,71852.0,0.05615656]
[1773572027597,0.05271,71862.0,71852.0,0.01441056]
[1773572028897,0.041741,71861.0,71852.0,0.01441056]
[1773572030188,0.041741,71861.0,71851.0,0.0014]
[1773572030794,0.041741,71861.0,71852.0,0.11811117]
[1773572033798,0.041741,71861.0,71853.0,0.11811117]
[1773572036798,0.041741,71861.0,71852.0,0.11811117]
[1773572039592,0.041742,71859.0,71852.0,0.11811117]
[1773572039792,0.041744,71856.0,71853.0,0.0014]
[1773572039991,0.041744,71856.0,71854.0,0.0014]
[1773572040200,0.041744,71856.0,71855.0,0.0014]
[1773572040399,0.041744,71856.0,71844.0,0.34803]
[1773572040594,0.01097,71862.0,71845.0,0.0014]
[1773572040798,0.01470522,71861.0,71845.0,0.0014]
[1773572042702,0.041745,71854.0,71845.0,0.0014]
[1773572043302,0.041745,71854.0,71846.0,0.0014]
[1773572046904,0.041745,71854.0,71847.0,0.0014]
[1773572048606,0.041747,71851.0,71847.0,0.0014]
[1773572049106,0.041745,71853.0,71847.0,0.0014]
[1773572049310,0.041746,71852.0,71848.0,0.0014]
[1773572049510,0.041746,71852.0,71849.0,0.0014]
[1773572049703,0.041746,71852.0,71850.0,0.0014]
[1773572049904,0.041746,71852.0,71851.0,0.0014]
[1773572050310,0.041746,71852.0,71841.0,0.01098]
[1773572050508,0.041746,71852.0,71842.0,0.0014]
[1773572051006,0.041747,71851.0,71842.0,0.0014]
[1773572052307,0.041747,71851.0,71841.0,0.01098]
[1773572052614,0.041747,71851.0,71842.0,0.0014]
[1773572053710,0.01470522,71856.0,71842.0,0.0014]
[1773572054108,0.01470522,71856.0,71843.0,0.0014]
[1773572054908,0.01470522,71856.0,71840.0,0.041752]
[1773572055112,0.041746,71852.0,71841.0,0.0014]
[1773572055612,0.041746,71852.0,71842.0,0.0014]
[1773572056003,0.041747,71851.0,71840.0,0.041752]
[1773572056315,0.041747,71851.0,71843.0,0.0014]
[1773572057614,0.041745,71853.0,71843.0,0.0014]
[1773572058113,0.01470522,71859.0,71843.0,0.0014]
[1773572058504,0.01470522,71859.0,71843.0,0.0024]
[1773572059703,0.01097,71862.0,71843.0,0.0024]
[1773572059704,0.041744,71855.0,71844.0,0.0155119]
[1773572059905,0.01097,71862.0,71844.0,0.0155119]
[1773572060313,0.041744,71856.0,71844.0,0.04175]
[1773572060615,0.041744,71856.0,71845.0,0.0155119]
[1773572061516,0.01097,71862.0,71846.0,0.0155119]
[1773572062820,0.041743,71857.0,71846.0,0.0155119]
[1773572063611,0.041742,71859.0,71847.0,0.0168833]
[1773572064519,0.041741,71860.0,71844.0,0.0168833]
[1773572066014,0.041741,71860.0,71847.0,0.041748]
[1773572066221,0.041741,71860.0,71848.0,0.0168833]
[1773572069215,0.04174,71863.0,71843.0,0.0014]
[1773572069416,0.04174,71862.0,71849.0,0.0586303]
[1773572069625,0.04174,71862.0,71850.0,0.0014]
[1773572070017,0.01615232,71871.0,71850.0,0.0014]
[1773572070218,0.01615232,71863.0,71841.0,0.0168833]
[1773572070418,0.041744,71856.0,71843.0,0.041751]
[1773572070618,0.041744,71855.0,71851.0,0.01097]
[1773572071016,0.041744,71855.0,71852.0,0.0014]
[1773572071212,0.041745,71854.0,71843.0,0.041751]
[1773572071417,0.041745,71854.0,71844.0,0.0014]
[1773572071624,0.041745,71854.0,71845.0,0.0014]
[1773572072127,0.041745,71854.0,71842.0,0.041751]
[1773572072330,0.041745,71854.0,71846.0,0.0014]
[1773572072622,0.041745,71854.0,71842.0,0.041751]
[1773572072828,0.041745,71854.0,71843.0,0.0014]
[1773572073427,0.041745,71854.0,71844.0,0.0014]
[1773572074330,0.041745,71854.0,71845.0,0.0014]
[1773572074728,0.041745,71854.0,71842.0,0.041751]
[1773572075026,0.041745,71854.0,71843.0,0.0014]
[1773572075225,0.041745,71854.0,71842.0,0.041751]
[1773572075427,0.041745,71854.0,71843.0,0.0014]
[1773572075728,0.041745,71854.0,71842.0,0.041751]
[1773572075932,0.041745,71854.0,71843.0,0.0014]
[1773572076732,0.041745,71854.0,71842.0,0.041751]